bitfinex-derivatives/quotes_ETHF0:USTF0_20230403
["timestamp","ask_amount","ask_price","bid_price","bid_amount"]
[1680555038391,3.01554679,1786.1,1786.0,0.15]
[1680555038892,4.01554679,1786.1,1786.0,0.15]
[1680555039285,4.01554679,1786.1,1785.4,0.54837497]
[1680555039286,0.05,1786.0,1785.4,0.54837497]
[1680555039484,1.115,1785.5,1785.3,3.2078]
[1680555039887,2.115,1785.4,1785.0,0.1]
[1680555040083,1.105,1785.1,1785.0,0.1]
[1680555041084,2.105,1785.1,1785.0,0.1]
[1680555041287,2.217,1785.1,1785.0,0.1]
[1680555041493,2.217,1785.1,1784.8,3.2078]
[1680555041693,1.115,1784.9,1784.8,3.2078]
[1680555044587,1.115,1785.2,1784.8,3.2078]
[1680555044887,3.2078,1785.3,1784.8,3.2078]
[1680555045087,1.105,1785.0,1784.8,3.2078]
[1680555045990,1.115,1784.9,1784.8,3.2078]
[1680555054697,3.7606889,1784.9,1784.8,3.2078]
[1680555054899,1.115,1784.9,1784.8,3.2078]
[1680555057595,1.107,1785.1,1784.9,1.0]
[1680555057801,1.107,1785.1,1785.0,3.2078]
[1680555058397,3.69377677,1785.1,1785.0,3.2078]
[1680555060801,4.80877677,1785.1,1785.0,3.2078]
[1680555066704,3.69377677,1785.1,1785.0,3.2078]
[1680555072002,2.58677677,1785.1,1785.0,3.2078]
[1680555072406,1.107,1785.2,1785.0,3.2078]
[1680555072611,2.59138236,1785.1,1785.0,3.2078]
[1680555072913,1.115,1785.1,1785.0,3.2078]
[1680555074812,1.115,1785.1,1784.7,3.7556261]
[1680555075012,1.115,1785.1,1784.7,3.2078]
[1680555075311,1.115,1785.1,1784.9,3.2078]
[1680555078405,1.0,1785.0,1784.7,1.72940444]
[1680555079111,1.115,1784.9,1784.7,1.72940444]
[1680555080009,1.115,1784.9,1784.8,1.16749957]
[1680555080212,1.115,1784.9,1784.8,4.37529957]
[1680555081205,1.115,1785.1,1784.8,3.2078]
[1680555081409,1.115,1785.1,1784.9,1.16809051]
[1680555081811,1.115,1785.1,1784.9,1.44969799]
[1680555082215,1.115,1785.1,1785.0,3.2078]
[1680555083714,1.115,1785.1,1785.0,4.65749799]
[1680555084017,1.115,1785.1,1785.0,5.25208828]
[1680555084209,1.68003665,1785.3,1785.0,5.25208828]
[1680555084409,1.107,1785.3,1785.1,1.76178253]
[1680555084605,2.59222179,1785.2,1785.1,1.76178253]
[1680555084813,2.59222179,1785.2,1785.1,3.2078]
[1680555085112,2.77614545,1785.5,1785.1,3.2078]
[1680555085416,2.77614545,1785.5,1785.4,1.46807807]
[1680555087510,2.77614545,1785.5,1785.3,3.2078]
[1680555087706,1.115,1785.5,1785.2,1.76169368]
[1680555090415,1.115,1785.5,1785.4,1.46791834]
[1680555090813,1.115,1785.5,1785.2,1.76169368]
[1680555091621,1.0,1785.4,1785.2,1.76169368]
[1680555091817,1.115,1785.3,1785.1,3.80598196]
[1680555092122,1.105,1785.2,1785.1,1.76169368]
[1680555093720,1.105,1785.2,1785.0,1.76169368]
[1680555093921,1.115,1785.1,1785.0,1.76169368]
[1680555094623,1.115,1785.1,1784.9,4.96949368]
[1680555094924,1.115,1785.1,1785.0,1.76169368]
[1680555098117,1.115,1785.1,1784.9,1.76169368]
[1680555099020,1.115,1785.1,1785.0,1.76169368]
[1680555099421,3.41178173,1785.1,1785.0,1.76169368]
[1680555102629,3.41178173,1785.1,1784.9,5.25208828]
[1680555102630,3.41178173,1785.1,1784.9,1.76169368]
[1680555102929,2.115,1785.0,1784.9,1.76169368]
[1680555105924,1.0,1784.9,1784.8,1.76169368]
[1680555106130,2.115,1784.9,1784.8,1.76169368]
[1680555107924,2.115,1784.9,1784.7,5.53139855]
[1680555108223,2.115,1784.8,1784.7,5.53139855]
[1680555108627,2.115,1784.8,1784.7,3.76970487]
[1680555108820,1.115,1784.8,1784.7,3.76970487]
[1680555109021,1.115,1784.8,1784.7,5.52957599]
[1680555109421,1.115,1784.8,1784.7,3.76970487]
[1680555109637,1.115,1784.8,1784.7,5.52956463]
[1680555109927,1.115,1784.8,1784.7,4.96765976]
[1680555111527,2.23,1784.8,1784.6,1.75985976]
[1680555111841,1.107,1784.7,1784.5,1.75985976]
[1680555112128,1.115,1784.6,1784.4,1.75985976]
[1680555112333,1.115,1784.5,1784.4,1.75985976]
[1680555113126,1.115,1784.5,1784.3,6.92827435]
[1680555113529,1.115,1784.5,1784.3,5.25208828]
[1680555113729,1.115,1784.5,1784.4,1.75850704]
[1680555116426,1.115,1784.5,1784.3,5.25208828]
[1680555116627,1.115,1784.5,1784.4,2.04428828]
[1680555116925,1.115,1784.5,1784.3,6.25208828]
[1680555117129,1.115,1784.5,1784.4,2.04428828]
[1680555118432,1.115,1784.7,1784.4,2.04428828]
[1680555118628,1.115,1784.7,1784.6,3.2078]
[1680555120640,1.107,1784.9,1784.6,3.2078]
[1680555120841,1.107,1784.9,1784.8,4.67256044]
[1680555121727,1.107,1784.9,1784.8,1.46476044]
[1680555122131,1.115,1784.9,1784.8,1.46476044]
[1680555123428,1.115,1784.9,1784.8,4.67256044]
[1680555125034,1.107,1785.0,1784.8,4.67251559]
[1680555125234,1.107,1785.0,1784.9,1.17179294]
[1680555126335,1.107,1785.0,1784.8,4.67251559]
[1680555126544,1.115,1784.9,1784.8,4.67251559]
[1680555127643,1.11202121,1784.9,1784.8,4.67251559]
[1680555127943,1.11202121,1784.9,1784.8,4.67247404]
[1680555128340,1.11202121,1784.9,1784.8,3.2078]
[1680555128646,1.11202121,1784.9,1784.8,1.46476738]
[1680555129551,3.1791968,1784.9,1784.8,1.46476738]
[1680555129844,1.11202121,1784.9,1784.8,1.46476738]
[1680555130946,1.11202121,1784.9,1784.8,4.67256738]
[1680555131847,1.11202121,1784.9,1784.8,3.2078]
[1680555132647,1.107,1784.9,1784.8,3.2078]
[1680555133043,1.107,1784.9,1784.8,1.4652972]
[1680555133741,1.107,1784.9,1784.7,0.54909422]
[1680555133941,1.54836733,1785.1,1784.6,4.96559506]
[1680555133942,1.115,1784.8,1784.6,4.96559506]
[1680555135141,1.115,1784.8,1784.6,3.2078]
[1680555135754,1.115,1784.8,1784.6,4.96559506]
[1680555143049,2.115,1785.0,1784.6,4.96559506]
[1680555143250,1.115,1785.0,1784.9,1.46716068]
[1680555143751,2.115,1785.0,1784.9,1.46716068]
[1680555144554,4.18657105,1785.0,1784.9,1.46716068]
[1680555145644,4.18657105,1785.0,1784.8,1.46716068]
[1680555145852,3.07157105,1785.0,1784.9,1.17384562]
[1680555146152,4.18657105,1785.0,1784.9,1.17384562]
[1680555154652,4.18657105,1785.0,1784.8,1.17384562]
[1680555154848,5.3228,1784.9,1784.8,1.17384562]
[1680555155656,6.4378,1784.9,1784.8,1.17384562]
[1680555155863,6.4378,1784.9,1784.7,1.17384562]
[1680555156058,3.23,1784.8,1784.7,1.17384562]
[1680555156560,3.23,1784.8,1784.6,1.17384562]
[1680555156864,5.3128,1784.7,1784.6,1.17384562]
[1680555159562,6.32624025,1784.7,1784.6,1.17388078]
[1680555159764,3.11844025,1784.7,1784.6,1.46716068]
[1680555159965,3.11844025,1784.7,1784.6,1.17382771]
[1680555160256,3.11844025,1784.7,1784.6,1.46716068]
[1680555162166,3.12044025,1784.7,1784.6,1.46716068]
[1680555163965,3.12844025,1784.7,1784.6,1.46716068]
[1680555164264,3.12844025,1784.7,1784.5,1.46716068]
[1680555164465,2.115,1784.6,1784.5,1.46716068]
[1680555165358,1.115,1784.6,1784.5,1.46716068]
[1680555167267,2.115,1784.6,1784.5,1.46716068]
[1680555168063,1.115,1784.6,1784.5,1.46716068]
[1680555169768,2.01344025,1784.7,1784.4,4.96559506]
[1680555169966,2.01344025,1784.7,1784.6,4.67432652]
[1680555170468,2.01344025,1784.7,1784.6,3.2078]
[1680555176274,3.12844025,1784.7,1784.6,1.17378581]
[1680555176481,4.12844025,1784.7,1784.6,1.17378581]
[1680555177071,3.12844025,1784.7,1784.6,1.17378581]
[1680555177273,3.12844025,1784.7,1784.5,4.67484435]
[1680555178474,3.12844025,1784.7,1784.6,1.46704435]
[1680555179274,3.12844025,1784.7,1784.5,4.67484435]
[1680555180070,3.12844025,1784.7,1784.6,1.46704435]
[1680555183386,3.12844025,1784.7,1784.5,8.7988]
[1680555184572,3.12844025,1784.7,1784.5,3.2078]
[1680555185780,2.01344025,1784.7,1784.5,8.7988]
[1680555185983,1.115,1784.9,1784.5,8.7988]
[1680555186181,1.115,1784.9,1784.8,1.17408362]
[1680555186379,1.115,1784.9,1784.8,1.46760452]
[1680555187084,4.87607385,1785.4,1784.8,1.115]
[1680555187283,1.66827385,1785.4,1785.1,1.17403754]
[1680555187486,1.115,1785.4,1785.1,1.17403754]
[1680555187681,1.115,1785.4,1785.2,1.17403754]
[1680555188780,1.115,1785.4,1785.1,1.17403754]
[1680555188980,1.115,1785.4,1785.2,1.17403754]
[1680555189686,1.30920362,1785.3,1785.1,1.17403754]
[1680555189985,1.115,1785.4,1785.1,1.17403754]
[1680555190588,1.115,1785.5,1785.1,2.28903754]
[1680555190791,1.115,1785.5,1785.2,1.17403754]
[1680555192188,1.115,1785.5,1785.2,4.38183754]
[1680555193986,1.1105307,1785.5,1785.2,4.38183754]
[1680555196791,1.1105307,1785.5,1785.2,3.2078]
[1680555196990,2.1105307,1785.5,1785.2,3.2078]
[1680555197193,2.1105307,1785.5,1785.2,3.75899554]
[1680555197790,1.115,1785.4,1785.2,3.75899554]
[1680555198093,1.115,1785.4,1785.2,3.2078]
[1680555198791,1.115,1785.4,1785.1,1.17403754]
[1680555198993,1.115,1785.4,1785.0,1.17403754]
[1680555200593,1.0,1785.3,1785.0,1.17403754]
[1680555201396,1.115,1785.4,1785.0,1.17403754]
[1680555202093,1.115,1785.3,1785.0,1.17403754]
[1680555204496,1.19909211,1785.2,1785.0,1.17403754]
[1680555205396,1.19909211,1785.2,1785.0,6.76503754]
[1680555207001,1.19909211,1785.2,1785.0,1.17403754]
[1680555208899,2.115,1785.1,1785.0,1.16987343]
[1680555209195,1.115,1785.1,1784.9,4.37767343]
[1680555210297,1.115,1785.0,1784.6,4.8866]
[1680555210498,1.107,1784.8,1784.6,1.46754692]
[1680555210797,1.107,1784.8,1784.5,1.46754692]
[1680555215404,2.107,1784.8,1784.5,1.46754692]
[1680555215805,1.107,1784.8,1784.5,1.46754692]
[1680555216602,2.107,1784.8,1784.5,1.46754692]
[1680555216808,1.107,1784.8,1784.5,1.46754692]
[1680555217406,2.107,1784.8,1784.4,1.46754692]
[1680555217610,1.107,1784.8,1784.4,1.46754692]
[1680555217804,2.107,1784.8,1784.4,1.46754692]
[1680555218206,1.105,1784.6,1784.4,1.46754692]
[1680555218909,1.105,1784.6,1784.3,4.67534692]
[1680555219614,1.6194254,1784.5,1784.3,4.67534692]
[1680555219813,1.6194254,1784.5,1784.2,5.24551509]
[1680555220011,1.6194254,1784.5,1784.2,1.46754692]
[1680555220311,2.107,1784.4,1784.2,1.46754692]
[1680555220502,2.107,1784.4,1784.1,3.18771996]
[1680555220702,1.107,1784.4,1784.1,1.46754692]
[1680555221409,1.107,1784.4,1784.2,1.46754692]
[1680555221599,1.107,1784.4,1784.1,1.46754692]
[1680555223320,1.6194254,1784.5,1784.2,3.2078]
[1680555223612,1.6194254,1784.5,1784.2,4.67534692]
[1680555224610,1.6194254,1784.5,1784.2,5.67534692]
[1680555224809,1.6194254,1784.5,1784.2,4.67534692]
[1680555225613,1.6194254,1784.5,1784.2,1.46754692]
[1680555225814,1.6194254,1784.5,1784.1,2.58254692]
[1680555228114,4.8272254,1784.5,1784.1,2.58254692]
[1680555229520,1.6194254,1784.5,1784.1,2.58254692]
[1680555229917,5.9422254,1784.5,1784.1,1.46754692]
[1680555230113,1.105,1784.3,1784.1,1.46754692]
[1680555230320,1.105,1784.3,1784.0,5.37660425]
[1680555231419,1.107,1784.2,1784.0,3.90905733]
[1680555231717,1.0,1784.1,1784.0,3.90905733]
[1680555232119,1.115,1784.3,1784.0,3.90905733]
[1680555234520,1.63226622,1784.2,1784.0,3.90905733]
[1680555234724,1.0,1784.1,1784.0,3.3578]
[1680555235018,1.0,1784.1,1784.0,0.15]
[1680555235219,2.105,1784.1,1783.8,3.2078]
[1680555235414,1.115,1783.9,1783.8,3.2078]
[1680555235821,1.115,1784.1,1783.8,8.7988]
[1680555236122,1.63226622,1784.2,1783.8,9.9138]
[1680555236722,1.63226622,1784.2,1783.8,11.38134692]
[1680555237424,1.63226622,1784.2,1783.8,11.93715039]
[1680555237923,1.63226622,1784.2,1783.8,10.46960347]
[1680555239017,1.63226622,1784.2,1783.9,1.16928086]
[1680555239716,1.63226622,1784.2,1783.8,10.46960347]
[1680555239717,2.74726622,1784.2,1783.8,10.52388433]
[1680555240021,2.74726622,1784.2,1783.9,1.16928086]
[1680555240222,2.74726622,1784.2,1783.8,10.52388433]
[1680555240613,2.74726622,1784.2,1783.9,1.16928086]
[1680555240921,2.74726622,1784.2,1783.8,4.93288433]
[1680555241129,1.107,1783.9,1783.7,2.63682778]
[1680555241426,1.107,1783.9,1783.7,1.16928086]
[1680555242026,1.115,1784.0,1783.7,6.76028086]
[1680555242224,1.107,1783.9,1783.7,1.16928086]
[1680555242527,2.107,1783.9,1783.7,1.16928086]
[1680555242827,1.115,1784.0,1783.7,1.16928086]
[1680555243332,4.3228,1784.0,1783.7,1.16928086]
[1680555243628,2.105,1783.9,1783.7,1.16928086]
[1680555243833,1.115,1784.0,1783.7,1.16928086]
[1680555245027,2.115,1784.0,1783.7,1.16928086]
[1680555245626,2.115,1783.9,1783.6,4.9290464]
[1680555246826,1.115,1783.9,1783.7,1.16928086]
[1680555247826,1.63226622,1784.2,1783.9,5.591]
[1680555248420,1.63226622,1784.2,1784.0,8.7988]
[1680555248627,1.63226622,1784.2,1784.0,5.591]
[1680555248819,1.63226622,1784.2,1784.0,8.7988]
[1680555251125,1.63226622,1784.2,1783.8,7.86528086]
[1680555251525,1.63226622,1784.2,1783.9,1.16928086]
[1680555251726,1.63226622,1784.2,1783.9,6.76028086]
[1680555253532,1.63226622,1784.2,1784.0,1.16928086]
[1680555253721,1.63226622,1784.2,1784.0,4.37708086]
[1680555253927,1.63226622,1784.2,1784.0,9.96808086]
[1680555254128,1.115,1784.5,1784.1,6.76028086]
[1680555254629,3.2078,1784.7,1784.3,6.706]
[1680555254834,1.66874127,1784.8,1784.4,8.7988]
[1680555255129,1.66874127,1784.8,1784.4,9.96808086]
[1680555255722,1.66874127,1784.8,1784.6,3.2078]
[1680555257833,1.66874127,1784.8,1784.6,3.76621153]
[1680555258327,0.57229666,1785.2,1784.7,1.105]
[1680555258530,3.77556211,1785.5,1785.1,1.105]
[1680555258733,3.77556211,1785.5,1785.2,1.115]
[1680555258935,0.55409882,1785.5,1785.2,4.3228]
[1680555259234,4.3148,1785.7,1785.3,5.591]
[1680555259628,3.2078,1785.9,1785.6,6.696]
[1680555259832,4.88056211,1786.1,1785.6,6.696]
[1680555260128,4.3128,1786.1,1785.6,9.9038]
[1680555260438,2.05526139,1786.2,1785.8,9.9138]
[1680555260439,0.92623797,1786.2,1785.8,9.9138]
[1680555260931,0.92623797,1786.2,1786.0,1.115]
[1680555261238,0.92623797,1786.2,1786.0,9.9138]
[1680555261533,0.92623797,1786.2,1786.1,2.115]
[1680555261930,0.92623797,1786.2,1786.1,7.706]
[1680555262336,1.17542596,1786.2,1786.1,7.706]
[1680555262829,1.17542596,1786.2,1786.1,1.115]
[1680555263332,1.17542596,1786.2,1786.1,2.115]
[1680555263536,1.17542596,1786.2,1786.1,7.706]
[1680555265531,1.17542596,1786.2,1786.1,7.7]
[1680555265732,1.17542596,1786.2,1786.1,6.7]
[1680555266144,1.17542596,1786.2,1786.1,7.26963149]
[1680555266339,0.92623797,1786.2,1786.1,7.26963149]
[1680555266640,0.24935705,1786.2,1786.1,7.26963149]
[1680555266838,1.04123797,1786.6,1786.1,7.26963149]
[1680555267142,1.04123797,1786.6,1786.2,8.7988]
[1680555267534,3.2078,1786.7,1786.3,1.105]
[1680555267837,4.85723698,1786.7,1786.3,1.105]
[1680555269137,1.6644314,1786.8,1786.3,1.105]
[1680555269138,3.2078,1786.9,1786.5,1.115]
[1680555269343,3.2078,1786.9,1786.5,6.706]
[1680555270137,1.115,1786.8,1786.4,4.3228]
[1680555270341,1.115,1786.8,1786.4,9.9138]
[1680555270839,3.2078,1786.9,1786.5,6.706]
[1680555271738,3.2078,1786.7,1786.3,1.115]
[1680555271931,3.2078,1786.5,1786.1,1.105]
[1680555272242,2.115,1786.4,1786.0,3.75345139]
[1680555272635,0.26611945,1786.3,1786.0,3.75345139]
[1680555272835,2.115,1786.4,1786.0,3.75345139]
[1680555273230,1.115,1786.1,1785.7,3.2078]
[1680555273434,4.3228,1786.1,1785.7,3.2078]
[1680555274256,1.115,1785.8,1785.4,1.66366847]
[1680555274545,4.3148,1785.7,1785.3,4.7947]
[1680555274741,4.3148,1785.7,1785.2,4.88635628]
[1680555275038,4.3148,1785.7,1785.2,10.47735628]
[1680555275443,3.2078,1785.7,1785.4,1.115]
[1680555275735,3.2078,1785.7,1785.2,6.15455628]
[1680555275736,3.2078,1785.5,1785.2,1.66855628]
[1680555276142,1.0,1785.4,1785.0,4.3128]
[1680555276550,4.3128,1785.5,1785.0,4.3128]
[1680555277843,1.115,1785.3,1784.8,1.115]
[1680555278047,4.3228,1785.3,1784.8,1.115]
[1680555278545,1.107,1785.2,1784.7,4.3228]
[1680555279137,4.3228,1785.4,1784.9,1.115]
[1680555279550,4.3228,1785.4,1784.9,4.3228]
[1680555279551,0.92435863,1785.3,1784.9,4.3228]
[1680555279750,4.3228,1785.4,1784.9,4.3228]
[1680555282045,1.115,1785.3,1784.9,3.2078]
[1680555282448,2.115,1785.3,1784.9,3.2078]
[1680555282940,1.115,1785.3,1784.9,3.2078]
[1680555283740,3.2078,1785.2,1784.8,1.115]
[1680555283940,1.115,1785.1,1784.7,1.7105375]
[1680555284144,1.115,1785.1,1784.6,4.87121153]
[1680555284351,1.115,1785.1,1784.6,6.55492578]
[1680555286763,1.115,1785.1,1784.7,5.591]
[1680555286965,1.115,1785.3,1784.8,4.3228]
[1680555289974,3.2078,1785.6,1785.2,1.115]
[1680555290473,1.107,1785.5,1785.0,4.3228]
[1680555290657,1.115,1785.3,1784.8,1.115]
[1680555290861,2.115,1785.3,1784.8,4.3228]
[1680555291161,1.115,1785.3,1784.8,4.3228]
[1680555291757,3.2078,1785.2,1784.8,4.3228]
[1680555292173,4.3228,1785.2,1784.8,3.2078]
[1680555292574,1.115,1785.2,1784.8,3.2078]
[1680555294567,0.92164922,1785.1,1784.8,3.2078]
[1680555294774,1.115,1785.2,1784.8,3.2078]
[1680555294973,1.105,1784.9,1784.6,5.44992578]
[1680555295273,4.3128,1784.9,1784.6,3.2078]
[1680555295467,1.105,1784.9,1784.6,3.2078]
[1680555296473,1.105,1785.0,1784.6,3.2078]
[1680555297663,1.105,1785.0,1784.6,9.7988]
[1680555297870,3.2078,1785.1,1784.8,3.2078]
[1680555298069,1.107,1785.2,1784.8,3.2078]
[1680555302985,1.107,1785.2,1784.8,3.76686415]
[1680555303572,0.56277162,1785.3,1784.9,1.115]
[1680555303776,1.115,1785.4,1784.9,1.115]
[1680555304280,1.115,1785.2,1784.8,9.35786415]
[1680555305277,1.115,1785.2,1784.8,0.55906415]
[1680555305475,1.115,1785.2,1784.8,3.2078]
[1680555305674,1.115,1785.2,1784.7,6.706]
[1680555305875,1.115,1785.2,1784.8,3.2078]
[1680555306071,1.115,1785.2,1784.7,6.706]
[1680555306277,0.80278308,1785.1,1784.7,6.706]
[1680555306680,4.3228,1785.2,1784.7,1.115]
[1680555306984,1.107,1785.1,1784.6,1.109]
[1680555308584,3.2078,1785.0,1784.6,1.109]
[1680555308781,1.107,1785.1,1784.6,1.109]
[1680555308982,3.2078,1785.0,1784.6,1.109]
[1680555312287,4.3228,1785.0,1784.5,3.2078]
[1680555312677,1.115,1784.7,1784.3,8.45768678]
[1680555312878,3.2078,1784.6,1784.3,2.25750592]
[1680555313073,3.2078,1784.6,1784.2,5.49208086]
[1680555314581,1.08921932,1784.5,1784.2,5.49208086]
[1680555314882,3.2078,1784.6,1784.2,5.49208086]
[1680555315081,1.08924092,1784.5,1784.2,5.48608086]
[1680555315284,1.08924092,1784.5,1784.3,2.28428086]
[1680555315584,4.3148,1784.8,1784.3,2.28428086]
[1680555315883,3.2078,1784.6,1784.3,1.115]
[1680555316077,3.2078,1784.6,1784.2,1.74081386]
[1680555316282,1.107,1784.4,1784.2,0.571533]
[1680555316576,1.107,1784.4,1784.1,1.16928086]
[1680555316783,4.3148,1784.4,1784.1,1.72188507]
[1680555318274,4.3148,1784.4,1784.2,1.16928086]
[1680555319389,1.04629665,1784.3,1784.2,1.16928086]
[1680555319686,4.3148,1784.4,1784.1,1.72188507]
[1680555319881,4.3148,1784.4,1784.2,1.16928086]
[1680555320789,4.3148,1784.4,1784.1,1.72188507]
[1680555321086,4.3148,1784.4,1784.1,1.16928086]
[1680555321286,4.3148,1784.4,1784.2,1.16928086]
[1680555321980,3.2078,1784.4,1784.2,1.16928086]
[1680555322988,4.3228,1784.7,1784.2,2.28428086]
[1680555323186,4.3228,1784.7,1784.3,1.16928086]
[1680555323887,1.115,1784.6,1784.3,1.16928086]
[1680555324784,3.2078,1784.5,1784.2,1.16928086]
[1680555324985,1.115,1784.6,1784.2,1.16928086]
[1680555327291,1.115,1784.4,1784.2,1.16928086]
[1680555327490,1.115,1784.4,1784.1,1.16928086]
[1680555327689,3.2078,1784.3,1784.1,1.16928086]
[1680555327992,1.105,1784.2,1784.1,1.16928086]
[1680555330184,1.105,1784.2,1784.0,1.16928086]
[1680555330384,1.105,1784.2,1784.1,1.16928086]
[1680555330785,2.105,1784.2,1784.1,1.16928086]
[1680555331089,2.105,1784.2,1783.9,1.46754692]
[1680555331090,2.115,1784.2,1784.0,1.16928086]
[1680555331388,4.3228,1784.1,1783.9,1.16928086]
[1680555331988,3.2078,1784.4,1783.9,2.28428086]
[1680555332180,4.3228,1784.4,1783.9,2.28428086]
[1680555332386,3.2078,1784.2,1783.9,2.28428086]
[1680555332885,1.115,1784.1,1783.9,1.16928086]
[1680555333282,4.3128,1784.0,1783.8,1.16928086]
[1680555333483,2.107,1783.9,1783.7,1.16928086]
[1680555333683,4.3228,1783.8,1783.7,1.16928086]
[1680555333889,3.2078,1783.8,1783.7,1.16928086]
[1680555334392,4.3228,1783.8,1783.5,2.81977895]
[1680555334594,4.3128,1783.6,1783.3,1.16928086]
[1680555334793,1.115,1783.4,1783.3,1.16928086]
[1680555334990,4.3151265,1783.4,1783.3,1.16928086]
[1680555336087,4.3228,1783.4,1783.2,1.16928086]
[1680555336286,1.115,1783.3,1783.2,1.16928086]
[1680555336485,2.115,1783.3,1783.2,1.16928086]
[1680555336685,2.115,1783.3,1783.1,1.16928086]
[1680555336893,4.3148,1783.2,1783.0,1.26928086]
[1680555337092,1.115,1783.1,1783.0,1.26928086]
[1680555337299,1.115,1783.1,1783.0,0.1]
[1680555337483,2.115,1783.1,1783.0,0.1]
[1680555338993,5.3228,1783.1,1783.0,0.1]
[1680555339894,2.115,1783.1,1783.0,0.1]
[1680555340791,1.115,1783.0,1782.5,1.16928086]
[1680555341098,2.22,1782.6,1782.4,1.16928086]
[1680555341298,1.107,1782.5,1782.3,4.37708086]
[1680555341495,1.115,1782.4,1782.3,1.16928086]
[1680555341694,1.115,1782.4,1782.1,1.16928086]
[1680555341695,1.114,1782.3,1782.1,1.16928086]
[1680555341990,1.115,1782.2,1782.0,1.31928086]
[1680555342185,1.114,1782.3,1782.0,1.31928086]
[1680555342590,1.98116042,1782.2,1782.0,0.15]
[1680555342784,1.98116042,1782.2,1782.0,1.31928086]
[1680555342986,1.105,1782.1,1782.0,1.31928086]
[1680555343189,1.105,1782.1,1782.0,0.15]
[1680555343889,4.3128,1782.1,1782.0,0.15]
[1680555344087,1.105,1782.1,1782.0,0.15]
[1680555344284,4.3128,1782.1,1782.0,0.15]
[1680555344491,5.3128,1782.1,1782.0,0.15]
[1680555344989,2.105,1782.1,1782.0,0.15]
[1680555345293,1.105,1782.1,1782.0,0.15]
[1680555345487,1.98116042,1782.2,1782.0,0.15]
[1680555345683,1.98116042,1782.2,1782.1,3.2078]
[1680555345883,1.105,1782.2,1782.1,3.2078]
[1680555346692,1.66979626,1782.4,1782.1,3.2078]
[1680555346993,1.115,1782.8,1782.3,4.3168]
[1680555347192,1.115,1782.8,1782.6,3.2078]
[1680555347597,1.115,1783.0,1782.6,3.2078]
[1680555347795,1.115,1783.0,1782.9,3.2078]
[1680555349000,2.23,1783.0,1782.7,3.2078]
[1680555349196,1.115,1782.7,1782.5,3.2078]
[1680555349397,1.115,1782.6,1782.5,3.2078]
[1680555349606,1.115,1782.6,1782.4,3.2078]
[1680555349801,1.115,1782.5,1782.4,3.2078]
[1680555351699,1.115,1782.5,1782.3,3.2078]
[1680555352202,2.244,1782.4,1782.3,3.2078]
[1680555352407,2.244,1782.4,1782.1,4.77209434]
[1680555352699,2.244,1782.4,1782.1,3.77209434]
[1680555353301,2.244,1782.3,1782.1,3.77209434]
[1680555353903,2.244,1782.5,1782.1,3.77209434]
[1680555354105,2.244,1782.5,1782.3,3.2078]
[1680555354608,2.244,1782.7,1782.3,3.2078]
[1680555354809,2.244,1782.7,1782.6,3.2078]
[1680555355909,3.87652934,1782.7,1782.3,3.2078]
[1680555356204,2.244,1782.4,1782.2,3.2078]
[1680555356504,2.244,1782.3,1782.2,3.2078]
[1680555356808,2.244,1782.5,1782.2,3.2078]
[1680555357006,2.244,1782.5,1782.4,3.2078]
[1680555364515,3.96437209,1782.5,1782.4,3.2078]
[1680555364818,1.72037209,1782.5,1782.4,3.2078]
[1680555365114,0.57091393,1782.8,1782.4,3.2078]
[1680555365304,2.241,1782.9,1782.6,3.2078]
[1680555367210,1.0,1782.8,1782.6,3.2078]
[1680555367906,3.241,1782.9,1782.6,3.2078]
[1680555368111,2.241,1782.9,1782.6,3.2078]
[1680555371620,2.244,1782.7,1782.3,3.2078]
[1680555373322,2.244,1782.7,1782.5,3.2078]
[1680555374318,2.244,1782.7,1782.3,3.2078]
[1680555375618,2.244,1782.5,1782.3,3.2078]
[1680555376120,2.244,1782.4,1782.1,3.2078]
[1680555377221,2.244,1782.5,1782.3,3.2078]
[1680555377426,2.244,1782.5,1782.1,3.2078]
[1680555377813,2.244,1782.5,1782.3,3.2078]
[1680555378519,2.244,1782.7,1782.3,3.2078]
[1680555378920,2.244,1782.7,1782.5,3.2078]
[1680555379519,1.15891762,1782.6,1782.5,3.2078]
[1680555379823,2.244,1782.7,1782.5,3.2078]
[1680555381321,2.244,1782.6,1782.4,1.16928086]
[1680555381519,2.241,1782.5,1782.2,1.16928086]
[1680555381725,2.226,1782.3,1782.2,1.16928086]
[1680555386129,2.226,1782.3,1782.2,2.63682778]
[1680555386326,2.226,1782.3,1782.1,4.67534692]
[1680555386526,2.226,1782.3,1782.2,1.46754692]
[1680555386928,2.79984977,1782.3,1782.2,1.46754692]
[1680555388125,2.81484977,1782.3,1782.2,1.46754692]
[1680555388530,2.81484977,1782.3,1782.2,1.17454741]
[1680555388732,2.81484977,1782.3,1782.2,1.1745572]
[1680555389031,3.81484977,1782.3,1782.2,1.1745572]
[1680555389623,2.81484977,1782.3,1782.2,1.1745572]
[1680555389826,3.81484977,1782.3,1782.2,1.1745572]
[1680555390231,2.81484977,1782.3,1782.2,1.1745572]
[1680555390627,1.174,1782.2,1782.0,0.15]
[1680555390835,5.0,1782.0,1781.5,1.17434417]
[1680555391033,5.4518,1781.6,1781.4,1.17434417]
[1680555391432,5.4518,1781.6,1781.3,1.17434417]
[1680555391634,2.244,1781.6,1781.4,1.17434417]
[1680555391838,2.241,1781.7,1781.3,4.38214417]
[1680555392044,2.226,1781.9,1781.5,1.17434417]
[1680555392431,2.244,1781.7,1781.5,1.17434417]
[1680555392631,2.244,1781.7,1781.4,1.17434417]
[1680555392829,2.244,1781.5,1781.4,1.17434417]